bitfinex-derivatives/quotes_SOLF0:USTF0_20250320
["timestamp","ask_amount","ask_price","bid_price","bid_amount"]
[1742476662830,38.50270824,130.57,130.54,252.79100506]
[1742476663626,7.6622,130.56,130.54,260.45410506]
[1742476664324,46.16460824,130.57,130.54,260.45410506]
[1742476664924,46.16460824,130.57,130.55,7.6624]
[1742476665222,38.50270824,130.57,130.55,7.6624]
[1742476665624,27.11300721,130.57,130.55,7.6624]
[1742476666335,34.77470721,130.57,130.55,7.6624]
[1742476667132,34.77470721,130.57,130.54,260.45400506]
[1742476667835,34.77470721,130.57,130.54,252.79100506]
[1742476668734,7.6622,130.56,130.54,252.79100506]
[1742476669131,27.06,130.56,130.54,0.05100506]
[1742476669324,7.6628,130.55,130.54,0.05100506]
[1742476676036,11.38970103,130.54,130.48,13.48410103]
[1742476676234,27.06,130.53,130.48,13.48410103]
[1742476676537,7.6654,130.51,130.48,21.15060103]
[1742476677134,7.72309227,130.51,130.48,21.2037653]
[1742476677632,0.05769227,130.51,130.48,21.2037653]
[1742476679534,7.72299227,130.51,130.48,11.4428653]
[1742476680437,7.72299227,130.51,130.48,19.1095653]
[1742476680741,7.72299227,130.51,130.48,11.4428653]
[1742476680935,27.06,130.5,130.48,0.05316427]
[1742476681534,34.726,130.5,130.48,0.05316427]
[1742476681735,27.06,130.5,130.48,0.05316427]
[1742476682242,0.05769227,130.51,130.49,11.38970103]
[1742476683834,0.05769227,130.51,130.5,19.05540103]
[1742476687138,9.227e-05,130.51,130.5,46.11540103]
[1742476687331,365.0,130.6,130.5,291.30970103]
[1742476687538,27.06,130.59,130.55,11.38970103]
[1742476687741,384.04980103,130.6,130.57,7.6614]
[1742476687941,27.06,130.59,130.57,7.6614]
[1742476688442,27.11789501,130.59,130.57,7.71221484]
[1742476689046,34.77839501,130.59,130.57,7.71221484]
[1742476690245,27.11789501,130.59,130.58,7.661]
[1742476691039,34.77839501,130.59,130.57,7.71211484]
[1742476691245,27.11789501,130.59,130.57,0.05081484]
[1742476692241,0.05789501,130.59,130.57,0.05081484]
[1742476692440,27.11789501,130.59,130.57,0.05081484]
[1742476693245,0.05789501,130.59,130.58,7.661]
[1742476693842,0.05789501,130.59,130.57,19.10181587]
[1742476694043,11.44759604,130.59,130.57,0.05081484]
[1742476694244,11.38970103,130.58,130.57,0.05081484]
[1742476694843,19.05070103,130.58,130.57,0.05081484]
[1742476695547,11.38970103,130.57,130.52,11.38970103]
[1742476695749,27.06,130.56,130.52,11.38970103]
[1742476695949,7.663,130.55,130.53,7.6638]
[1742476696849,0.05171403,130.55,130.54,7.6633]
[1742476697250,0.05171403,130.55,130.53,0.04999594]
[1742476698146,7.71471403,130.55,130.53,7.71389594]
[1742476698342,0.05171403,130.55,130.53,0.04999594]
[1742476698547,11.38970103,130.54,130.53,0.04999594]
[1742476698742,19.05300103,130.54,130.53,0.04999594]
[1742476699252,19.10441506,130.55,130.53,0.04999594]
[1742476700047,7.6633,130.54,130.53,0.04999594]
[1742476703151,19.10461506,130.55,130.53,0.04999594]
[1742476703851,7.6633,130.54,130.53,0.04999594]
[1742476704656,19.10451506,130.55,130.53,0.04999594]
[1742476705953,7.6633,130.54,130.53,0.04999594]
[1742476708656,19.10451506,130.55,130.53,0.04999594]
[1742476709258,19.10451506,130.55,130.53,7.71369594]
[1742476709760,0.05171403,130.55,130.54,7.6633]
[1742476711164,0.05171403,130.55,130.53,7.71359594]
[1742476711367,7.71451403,130.55,130.53,7.71359594]
[1742476713072,7.71451403,130.55,130.53,0.04999594]
[1742476713872,7.6633,130.54,130.53,0.04999594]
[1742476717370,19.10421506,130.55,130.53,0.04999594]
[1742476717574,7.71451403,130.55,130.53,0.04999594]
[1742476718270,7.71451403,130.55,130.53,7.71369594]
[1742476720782,7.6633,130.54,130.53,0.04999594]
[1742476721883,7.71481403,130.55,130.53,7.71389594]
[1742476723978,7.6633,130.54,130.53,0.04999594]
[1742476725981,19.05300103,130.54,130.53,0.04999594]
[1742476726181,7.6652,130.51,130.49,7.666]
[1742476726776,7.6647,130.52,130.49,7.666]
[1742476726974,7.6647,130.52,130.48,15.62990103]
[1742476726975,7.6647,130.52,130.5,7.6657]
[1742476727179,0.05414337,130.52,130.5,0.04952004]
[1742476728583,0.05414337,130.52,130.51,7.6651]
[1742476730983,0.05414337,130.52,130.5,11.43922107]
[1742476731584,0.05414337,130.52,130.51,7.6651]
[1742476732585,365.0,130.58,130.51,11.38970103]
[1742476732879,34.7213,130.58,130.55,11.38970103]
[1742476733081,22.06587729,130.59,130.55,11.38970103]
[1742476733082,10.67617626,130.59,130.55,11.38970103]
[1742476733281,27.06,130.58,130.55,11.38970103]
[1742476733684,27.11468921,130.58,130.55,11.44287752]
[1742476733978,0.05468921,130.58,130.55,11.44287752]
[1742476734182,0.05468921,130.58,130.57,11.38970103]
[1742476734584,0.05468921,130.58,130.57,19.05130103]
[1742476735988,10.67617626,130.61,130.6,7.6598]
[1742476736382,10.67617626,130.61,130.6,19.04950103]
[1742476736782,10.67617626,130.61,130.6,7.6598]
[1742476736980,10.67617626,130.61,130.58,11.38970103]
[1742476737284,10.67617626,130.61,130.59,11.44018461]
[1742476737483,117.48872623,130.62,130.6,11.38970103]
[1742476737484,0.05078731,130.62,130.6,11.38970103]
[1742476737686,0.05078731,130.62,130.61,11.38970103]
[1742476738286,0.05078731,130.62,130.61,19.04890103]
[1742476738487,27.06,130.66,130.61,11.38970103]
[1742476738688,7.6578,130.64,130.61,19.04850103]
[1742476738985,11.38970103,130.65,130.61,11.38970103]
[1742476739287,7.6591,130.62,130.59,252.82]
[1742476739484,0.04980754,130.62,130.59,252.87574337]
[1742476739684,11.38970103,130.61,130.59,0.05574337]
[1742476739891,7.6598,130.6,130.59,0.05574337]
[1742476740487,7.6595,130.61,130.59,0.05574337]
[1742476740889,11.43950857,130.62,130.59,0.05574337]
[1742476741090,11.38970103,130.61,130.59,0.05574337]
[1742476741391,46.08950103,130.6,130.59,0.05574337]
[1742476741790,34.6998,130.6,130.59,0.05574337]
[1742476743086,27.04,130.6,130.59,0.05574337]
[1742476743287,7.6595,130.61,130.59,0.05574337]
[1742476743596,7.70880754,130.62,130.6,7.6597]
[1742476743888,27.08980754,130.62,130.6,7.6597]
[1742476744194,27.08980754,130.62,130.59,19.1055444]
[1742476744594,27.08980754,130.62,130.59,11.4454444]
[1742476745097,27.08980754,130.62,130.6,7.6595]
[1742476746000,0.04980754,130.62,130.61,7.6592]
[1742476746189,0.04980754,130.62,130.61,19.04890103]
[1742476746590,27.04,130.66,130.63,7.6578]
[1742476746796,27.04,130.66,130.63,11.38970103]
[1742476746995,7.6569,130.65,130.63,11.38970103]
[1742476747592,7.70932874,130.65,130.63,11.44352809]
[1742476747998,7.6575,130.64,130.63,0.05382706]
[1742476749297,19.04720103,130.64,130.63,0.05382706]
[1742476749896,7.6575,130.64,130.63,0.05382706]
[1742476752502,0.05242874,130.65,130.63,11.44352809]
[1742476752802,0.05242874,130.65,130.64,19.04720103]
[1742476755499,0.05242874,130.65,130.63,7.71162706]
[1742476756696,0.05242874,130.65,130.63,0.05382706]
[1742476757791,0.05242874,130.65,130.63,7.71192706]
[1742476758202,7.70962874,130.65,130.63,7.71192706]
[1742476758602,7.70962874,130.65,130.63,0.05382706]
[1742476759098,7.70962874,130.65,130.63,7.71162706]
[1742476759298,7.70962874,130.65,130.63,0.05382706]
[1742476760397,7.6575,130.64,130.63,0.05382706]
[1742476762805,7.70962874,130.65,130.63,0.05382706]
[1742476763006,7.70962874,130.65,130.63,7.71182706]
[1742476767411,7.70962874,130.65,130.63,0.05382706]
[1742476767912,7.70962874,130.65,130.63,7.71152706]
[1742476769413,0.05242874,130.65,130.63,7.71152706]
[1742476770011,7.70962874,130.65,130.63,7.71152706]
[1742476771314,7.6575,130.64,130.63,0.05382706]
[1742476772216,7.70962874,130.65,130.63,0.05382706]
[1742476772717,7.70962874,130.65,130.63,7.71182706]
[1742476773410,7.70962874,130.65,130.63,0.05382706]
[1742476773615,7.6575,130.64,130.63,0.05382706]
[1742476774020,7.70962874,130.65,130.63,7.71172706]
[1742476774718,0.05242874,130.65,130.64,7.6575]
[1742476775416,0.05242874,130.65,130.63,7.71152706]
[1742476775816,0.05242874,130.65,130.63,0.05382706]
[1742476776218,0.05242874,130.65,130.64,7.6575]
[1742476782631,0.05242874,130.65,130.64,19.04720103]
[1742476783629,7.6555,130.68,130.66,7.656]
[1742476784227,7.6557,130.67,130.65,19.04630103]
[1742476784628,27.02,130.69,130.65,11.38970103]
[1742476784829,0.05631078,130.67,130.65,11.44014395]
[1742476785329,0.05631078,130.67,130.66,7.6563]
[1742476787228,0.05631078,130.67,130.66,19.04600103]
[1742476788123,0.05631078,130.67,130.66,7.6563]
[1742476788329,0.05631078,130.67,130.65,19.09684395]
[1742476788529,7.71201078,130.67,130.65,19.09684395]
[1742476788725,0.05631078,130.67,130.65,11.44014395]
[1742476789128,7.6563,130.66,130.65,0.05044292]
[1742476789330,34.6763,130.66,130.65,0.05044292]
[1742476789832,46.06600103,130.66,130.65,0.05044292]
[1742476790631,34.6763,130.66,130.65,0.05044292]
[1742476798944,27.02,130.66,130.65,11.44014395]
[1742476799341,27.02,130.66,130.65,19.09704395]
[1742476800046,27.02,130.66,130.65,11.44014395]
[1742476800344,34.6763,130.66,130.65,0.05044292]
[1742476801951,27.02,130.66,130.65,0.05044292]
[1742476802243,27.02,130.66,130.65,11.44014395]
[1742476802544,0.05631078,130.67,130.65,11.44014395]
[1742476802747,0.05631078,130.67,130.65,0.05044292]
[1742476803137,7.71241078,130.67,130.65,0.05044292]
[1742476803447,0.05631078,130.67,130.65,0.05044292]
[1742476803841,7.6563,130.66,130.65,0.05044292]
[1742476806844,7.6591,130.62,130.6,264.08970103]
[1742476807146,27.02,130.62,130.59,11.38970103]
[1742476807341,7.6596,130.61,130.59,11.38970103]
[1742476807541,27.02,130.62,130.58,11.38970103]
[1742476807746,27.02,130.62,130.59,11.38970103]
[1742476807946,0.05461402,130.61,130.6,7.6598]
[1742476808446,0.05461402,130.61,130.6,19.04950103]
[1742476809545,7.71421402,130.61,130.59,11.44590204]
[1742476809949,0.05461402,130.61,130.59,11.44590204]
[1742476810150,0.05461402,130.61,130.6,19.04950103]
[1742476812551,0.05461402,130.61,130.59,7.71650101]
[1742476813049,7.71381402,130.61,130.59,7.71650101]
[1742476813250,0.05461402,130.61,130.59,7.71650101]
[1742476814953,7.71401402,130.61,130.59,0.05620101]
[1742476815448,7.71411402,130.61,130.59,0.05620101]
[1742476816549,7.6598,130.6,130.59,0.05620101]
[1742476817755,11.44431505,130.61,130.59,0.05620101]
[1742476818151,19.10401505,130.61,130.59,0.05620101]
[1742476818552,11.44431505,130.61,130.59,0.05620101]
[1742476818855,7.6598,130.6,130.59,0.05620101]
[1742476819257,19.10391505,130.61,130.59,0.05620101]
[1742476819860,7.6598,130.6,130.59,0.05620101]
[1742476825459,7.6598,130.6,130.55,252.62]
[1742476825460,7.6612,130.58,130.55,252.62]
[1742476825660,34.7012,130.58,130.55,252.62]
[1742476825857,34.7012,130.58,130.55,260.2825]
[1742476826564,27.08997942,130.58,130.55,252.67439994]
[1742476827362,11.38970103,130.56,130.55,0.05439994]
[1742476827762,19.05190103,130.56,130.55,0.05439994]
[1742476828459,7.6643,130.53,130.51,13.48360103]
[1742476829059,7.6651,130.51,130.5,252.72]
[1742476829367,38.42970103,130.54,130.5,252.72]
[1742476829662,7.6649,130.52,130.51,0.05520508]
[1742476830355,11.38970103,130.52,130.51,0.05520508]
[1742476830559,7.72163589,130.53,130.51,0.05520508]
[1742476830761,0.05743589,130.53,130.51,0.05520508]
[1742476830968,0.05743589,130.53,130.51,7.72020508]
[1742476831464,0.05743589,130.53,130.51,0.05520508]
[1742476832362,7.72143589,130.53,130.51,0.05520508]
[1742476832562,0.05743589,130.53,130.51,0.05520508]
[1742476833661,0.05743589,130.53,130.52,7.6645]
[1742476834764,0.05743589,130.53,130.51,7.72000508]
[1742476834965,0.05743589,130.53,130.51,0.05520508]
[1742476835468,7.72173589,130.53,130.51,0.05520508]
[1742476835765,0.05743589,130.53,130.51,0.05520508]
[1742476835969,7.6645,130.52,130.51,0.05520508]
[1742476837369,7.72163589,130.53,130.51,0.05520508]
[1742476838270,7.72163589,130.53,130.51,7.72030508]
[1742476838566,0.05743589,130.53,130.51,0.05520508]
[1742476839469,0.05743589,130.53,130.52,7.6645]
[1742476840865,0.05743589,130.53,130.52,19.05420103]
[1742476848366,27.04,130.56,130.55,7.6628]
[1742476848770,27.04,130.56,130.54,11.38970103]
[1742476848968,27.04,130.56,130.54,7.6631]
[1742476849175,27.04,130.56,130.53,11.38970103]
[1742476849574,27.09679417,130.56,130.54,7.6631]
[1742476849772,27.09679417,130.56,130.53,0.05192727]
[1742476849975,11.4464952,130.56,130.53,0.05192727]
[1742476850176,27.04,130.55,130.53,0.05192727]
[1742476850377,7.6633,130.54,130.53,0.05192727]
[1742476852679,34.703,130.55,130.53,0.05192727]
[1742476852880,27.04,130.55,130.53,0.05192727]
[1742476853282,27.04,130.55,130.53,7.71542727]
[1742476853783,27.04,130.55,130.54,7.6633]
[1742476854383,0.05679417,130.56,130.53,11.4416283]
[1742476854781,0.05679417,130.56,130.54,7.6629]
[1742476854980,0.05679417,130.56,130.53,11.4416283]
[1742476855381,7.71899417,130.56,130.54,7.663]
[1742476856381,7.71899417,130.56,130.53,0.05192727]
[1742476856884,7.71899417,130.56,130.54,7.663]
[1742476858376,7.71899417,130.56,130.53,0.05192727]
[1742476858582,0.05679417,130.56,130.53,0.05192727]
[1742476858888,11.4464952,130.56,130.53,0.05192727]
[1742476859285,0.05679417,130.56,130.53,0.05192727]
[1742476859485,7.71929417,130.56,130.54,7.6632]
[1742476859986,7.71929417,130.56,130.53,0.05192727]
[1742476860695,0.05679417,130.56,130.54,7.6633]
[1742476860889,0.05679417,130.56,130.53,0.05192727]
[1742476861193,0.05679417,130.56,130.55,7.6628]
[1742476861700,0.05679417,130.56,130.53,11.4416283]
[1742476861898,7.71899417,130.56,130.54,7.6631]
[1742476864093,11.38970103,130.55,130.47,11.38970103]
[1742476864288,11.38970103,130.52,130.47,11.38970103]
[1742476864502,7.6659,130.5,130.47,11.38970103]
[1742476864894,27.04,130.51,130.47,11.38970103]
[1742476865093,27.04,130.51,130.48,7.6666]
[1742476865293,0.05045238,130.5,130.48,11.43874083]
[1742476866399,7.71635238,130.5,130.48,11.43874083]
[1742476866904,7.6663,130.49,130.48,11.43874083]
[1742476867201,0.05045238,130.5,130.48,0.0490398]
[1742476867701,7.6663,130.49,130.48,0.0490398]
[1742476869702,7.71645238,130.5,130.48,0.0490398]
[1742476870398,0.05045238,130.5,130.48,0.0490398]
[1742476871305,0.05045238,130.5,130.48,11.43874083]
[1742476871900,0.05045238,130.5,130.48,0.0490398]
[1742476872201,7.6663,130.49,130.48,0.0490398]
[1742476873902,19.10615341,130.5,130.48,0.0490398]
[1742476874299,11.44015341,130.5,130.48,0.0490398]
[1742476875399,7.6663,130.49,130.48,0.0490398]
[1742476877499,19.10615341,130.5,130.48,0.0490398]
[1742476877903,7.71645238,130.5,130.48,0.0490398]
[1742476878406,7.6663,130.49,130.48,0.0490398]
[1742476880405,7.71635238,130.5,130.48,0.0490398]
[1742476880603,11.44015341,130.5,130.48,0.0490398]
[1742476880805,7.6663,130.49,130.48,0.0490398]
[1742476881908,19.10615341,130.5,130.48,0.0490398]
[1742476882407,7.6663,130.49,130.48,0.0490398]
[1742476886109,19.04970103,130.49,130.4,268.46350103]
[1742476886310,11.38970103,130.45,130.4,268.46350103]
[1742476886504,27.04,130.44,130.4,268.46350103]
[1742476886710,27.04,130.44,130.42,11.38970103]
[1742476887009,27.04,130.46,130.42,11.38970103]
[1742476887208,0.05333252,130.44,130.42,19.11464393]
[1742476887403,0.05333252,130.44,130.42,11.44444393]
[1742476887699,7.72303252,130.44,130.42,11.44444393]
[1742476888014,7.72303252,130.44,130.42,0.0547429]
[1742476888208,0.05333252,130.44,130.42,0.0547429]
[1742476888514,7.6698,130.43,130.42,0.0547429]
[1742476888714,34.7298,130.43,130.42,0.0547429]
[1742476889107,27.06,130.43,130.42,0.0547429]
[1742476891409,34.7298,130.43,130.42,0.0547429]
[1742476892212,27.06,130.43,130.42,0.0547429]
[1742476893121,38.44970103,130.43,130.37,11.38970103]
[1742476893415,11.38970103,130.38,130.35,7.6741]
[1742476893616,27.06,130.38,130.35,11.38970103]
[1742476893816,27.06,130.38,130.33,27.06]
[1742476894117,0.05513879,130.37,130.36,7.6736]
[1742476895515,0.05513879,130.37,130.35,7.6742]
[1742476895716,0.05513879,130.37,130.34,11.44000659]
[1742476896114,0.05513879,130.37,130.35,7.6741]
[1742476897011,0.05513879,130.37,130.36,7.6739]
[1742476897516,11.44483982,130.37,130.34,0.05030556]
[1742476897919,19.11843982,130.37,130.34,7.72510556]
[1742476898919,7.72873879,130.37,130.34,7.72510556]
[1742476899312,11.38970103,130.36,130.34,0.05030556]
[1742476899509,27.06,130.35,130.34,0.05030556]
[1742476900021,38.44970103,130.35,130.3,253.0]
[1742476900215,11.38970103,130.33,130.3,253.0]
[1742476900617,38.44970103,130.32,130.26,11.38970103]
[1742476900816,27.14,130.31,130.29,7.6776]
[1742476901022,27.14,130.31,130.28,11.38970103]
[1742476901211,27.19219925,130.31,130.3,11.38970103]
[1742476901411,0.05219925,130.31,130.3,7.6775]
[1742476904127,0.05219925,130.31,130.3,19.06720103]
[1742476904827,0.05219925,130.31,130.3,7.6775]
[1742476906028,0.05219925,130.31,130.29,7.73519571]
[1742476906422,7.72939925,130.31,130.29,7.73539571]
[1742476906824,0.05219925,130.31,130.29,7.73539571]
[1742476907829,7.72909925,130.31,130.29,7.73539571]
[1742476908430,0.05219925,130.31,130.29,7.73539571]
[1742476909032,0.05219925,130.31,130.3,7.6775]
[1742476913433,0.05219925,130.31,130.29,11.44709674]
[1742476913834,0.05219925,130.31,130.3,7.6775]
[1742476914936,0.05219925,130.31,130.29,19.12489674]
[1742476915235,7.72909925,130.31,130.29,19.12489674]
[1742476915636,0.05219925,130.31,130.29,19.12489674]
[1742476915934,0.05219925,130.31,130.29,0.05739571]
[1742476916132,34.8175,130.3,130.29,0.05739571]
[1742476916733,27.14,130.3,130.29,0.05739571]
[1742476917638,27.14,130.3,130.29,7.73549571]
[1742476917935,34.8175,130.3,130.29,0.05739571]
[1742476918329,27.14,130.3,130.29,0.05739571]
[1742476919138,34.8175,130.3,130.29,0.05739571]
[1742476920337,46.20720103,130.3,130.29,0.05739571]
[1742476921841,38.52970103,130.3,130.29,0.05739571]
[1742476922337,27.14,130.3,130.29,0.05739571]
[1742476923742,34.8175,130.3,130.29,0.05739571]
[1742476924040,27.14,130.3,130.29,0.05739571]
[1742476925339,27.14,130.3,130.29,7.73549571]
[1742476925539,38.52970103,130.3,130.23,27.32]
[1742476925740,27.14,130.3,130.26,11.38970103]
[1742476925943,27.14,130.3,130.28,7.6784]
[1742476926143,27.14,130.3,130.27,11.38970103]
[1742476926844,27.19171911,130.3,130.27,11.44705057]
[1742476927643,34.86931911,130.3,130.28,7.6784]
[1742476927943,27.19171911,130.3,130.27,11.44705057]
[1742476928334,27.19171911,130.3,130.28,7.6783]
[1742476928533,27.19171911,130.3,130.27,11.44705057]
[1742476928745,27.19171911,130.3,130.27,0.05734954]
[1742476928941,7.6783,130.29,130.27,7.73624954]
[1742476929341,38.58142014,130.3,130.27,0.05734954]
[1742476930146,7.6781,130.29,130.27,7.73654954]
[1742476930346,7.6781,130.29,130.27,0.05734954]
[1742476930547,34.86951911,130.3,130.28,7.6782]
[1742476931046,34.86951911,130.3,130.27,0.05734954]
[1742476931246,7.6783,130.29,130.27,7.73624954]
[1742476931548,27.19171911,130.3,130.27,0.05734954]
[1742476931845,34.86961911,130.3,130.28,7.6786]
[1742476932448,34.86961911,130.3,130.27,7.73624954]
[1742476932746,34.86961911,130.3,130.27,0.05734954]
[1742476933246,34.86961911,130.3,130.28,7.6784]
[1742476933644,7.6781,130.29,130.27,7.73614954]
[1742476933947,27.19171911,130.3,130.27,0.05734954]
[1742476934149,34.86951911,130.3,130.28,7.6782]
[1742476934749,7.6781,130.29,130.27,7.73624954]
[1742476934950,27.19171911,130.3,130.27,0.05734954]
[1742476935254,34.86971911,130.3,130.28,7.6786]
[1742476936350,7.6781,130.29,130.27,7.73634954]
[1742476936545,27.19171911,130.3,130.27,0.05734954]
[1742476936954,7.6784,130.29,130.27,7.73614954]
[1742476937253,27.19171911,130.3,130.27,0.05734954]
[1742476937648,38.58142014,130.3,130.27,0.05734954]
[1742476938652,7.6786,130.28,130.27,0.05734954]
[1742476938857,38.58142014,130.3,130.27,0.05734954]
[1742476939553,7.6786,130.28,130.27,0.05734954]
[1742476941048,7.6784,130.29,130.27,0.05734954]
[1742476941255,7.6784,130.29,130.27,7.73654954]
[1742476942049,46.25912014,130.3,130.28,7.6786]
[1742476942251,46.25912014,130.3,130.27,0.05734954]
[1742476942252,38.58142014,130.3,130.27,0.05734954]
[1742476942747,7.6783,130.29,130.27,7.73614954]
[1742476943357,38.58142014,130.3,130.27,0.05734954]
[1742476943950,7.6783,130.29,130.27,7.73634954]
[1742476945750,7.6786,130.28,130.27,0.05734954]
[1742476946849,7.6784,130.29,130.27,7.73654954]
[1742476947251,38.58142014,130.3,130.27,0.05734954]
[1742476947557,7.6786,130.28,130.27,0.05734954]
[1742476948051,19.06830103,130.28,130.27,0.05734954]
[1742476948251,11.38970103,130.28,130.21,11.38970103]
[1742476948449,27.3,130.27,130.21,11.38970103]
[1742476948654,11.38970103,130.26,130.22,260.9419]
[1742476948952,7.6807,130.25,130.22,253.26]
[1742476949358,0.05726544,130.25,130.22,253.31705861]
[1742476949757,0.05726544,130.25,130.24,7.681]
[1742476951056,0.05726544,130.25,130.24,19.07070103]
[1742476955150,0.05726544,130.25,130.24,21.14480103]
[1742476955355,27.38,130.28,130.27,7.6792]
[1742476955764,27.38,130.3,130.29,7.6781]
[1742476957561,35.0575,130.3,130.28,7.7288604]
[1742476957955,46.44720103,130.3,130.28,7.7288604]
[1742476958558,38.76970103,130.3,130.29,7.6781]
[1742476960161,0.05239167,130.31,130.3,7.6775]
[1742476964770,0.05239167,130.31,130.29,7.6777]
[1742476965069,0.05239167,130.31,130.28,0.0504604]
[1742476965464,7.72939167,130.31,130.29,7.6781]
[1742476965670,0.05239167,130.31,130.28,0.0504604]
[1742476966063,0.05239167,130.31,130.29,7.6781]
[1742476966569,0.05239167,130.31,130.28,0.0504604]
[1742476966970,0.05239167,130.31,130.3,7.6775]
[1742476968569,27.39239167,130.31,130.3,7.6775]
[1742476972571,35.06949167,130.31,130.29,7.6778]
[1742476972875,11.38970103,130.3,130.28,0.0504604]
[1742476973276,7.6781,130.29,130.28,0.0504604]
[1742476974273,19.06750103,130.3,130.28,0.0504604]
[1742476974473,11.38970103,130.3,130.28,0.0504604]
[1742476974875,7.6781,130.29,130.28,0.0504604]
[1742476980385,7.6781,130.29,130.28,6.04e-05]
[1742476980777,9.6457,130.29,130.28,6.04e-05]
[1742476981179,21.03730103,130.29,130.2,15.50050103]
[1742476981391,11.38970103,130.25,130.2,15.50050103]
[1742476981583,27.32,130.24,130.22,11.38970103]
[1742476981784,34.9801,130.26,130.24,7.6809]
[1742476981983,34.9801,130.26,130.22,11.38970103]
[1742476982184,7.6805,130.25,130.23,7.6813]
[1742476982379,0.05195247,130.25,130.23,7.72957568]
[1742476982581,0.05195247,130.25,130.23,0.04827568]
[1742476982778,0.05195247,130.25,130.24,7.681]
[1742476983091,0.05195247,130.25,130.23,0.04827568]
[1742476983283,0.05195247,130.25,130.23,7.72947568]
[1742476983879,0.05195247,130.25,130.23,0.04827568]
[1742476984386,7.681,130.24,130.23,0.04827568]
[1742476984788,7.73265247,130.25,130.23,0.04827568]
[1742476984987,7.73265247,130.25,130.23,7.72957568]
[1742476986190,0.05195247,130.25,130.23,7.72957568]
[1742476986790,7.73255247,130.25,130.23,7.72957568]
[1742476986992,7.73255247,130.25,130.23,0.04827568]
[1742476987487,7.73255247,130.25,130.23,7.72977568]
[1742476988994,7.681,130.24,130.23,0.04827568]
[1742476989494,19.07070103,130.24,130.23,0.04827568]
[1742476992593,19.07070103,130.24,130.23,7.568e-05]
[1742476995398,11.38970103,130.21,130.19,7.6839]
[1742476995596,27.38,130.2,130.19,7.6839]
[1742476995800,7.6834,130.2,130.17,11.38970103]
[1742476995994,7.6834,130.2,130.17,7.6847]
[1742476996495,11.43823788,130.2,130.17,7.71249577]
[1742476997195,19.12193788,130.2,130.18,7.6844]
[1742476997398,7.73223685,130.2,130.18,7.6844]
[1742476998090,0.04853685,130.2,130.18,7.6844]
[1742476998702,7.73203685,130.2,130.18,7.6844]
[1742476999398,0.04853685,130.2,130.18,7.6844]
[1742476999795,7.73193685,130.2,130.18,7.6844]
[1742476999997,0.04853685,130.2,130.18,7.6844]
[1742477000798,7.73203685,130.2,130.18,7.6844]
[1742477001003,0.04853685,130.2,130.17,7.71259577]
[1742477001203,0.04853685,130.2,130.17,0.02779577]
[1742477001505,0.04853685,130.2,130.18,7.6841]
[1742477002297,7.73193685,130.2,130.18,7.6841]
[1742477002900,0.04853685,130.2,130.18,7.6841]
[1742477003799,7.73193685,130.2,130.18,7.6841]
[1742477004601,0.04853685,130.2,130.19,7.684]
[1742477005104,0.04853685,130.2,130.18,7.6843]
[1742477005304,11.38970103,130.19,130.17,0.02779577]
[1742477005504,38.74970103,130.18,130.17,0.02779577]
[1742477007305,46.43420103,130.18,130.17,0.02779577]
[1742477007704,38.74970103,130.18,130.17,0.02779577]
[1742477008510,46.43420103,130.18,130.17,0.02779577]
[1742477009404,38.74970103,130.18,130.17,0.02779577]
[1742477010509,46.43420103,130.18,130.17,0.02779577]
[1742477011507,7.6859,130.16,130.14,7.6866]
[1742477011708,27.44,130.15,130.1,11.38970103]
[1742477012110,7.6873,130.14,130.11,7.6882]
[1742477012508,27.44,130.15,130.11,7.6882]
[1742477012708,0.05693176,130.14,130.11,7.6882]
[1742477012911,0.05693176,130.14,130.1,19.07870103]
[1742477013211,7.74443176,130.14,130.1,19.07870103]
[1742477013406,11.44663279,130.14,130.1,19.07870103]
[1742477013808,11.44663279,130.14,130.11,7.6886]
[1742477014312,11.44663279,130.14,130.1,7.689]
[1742477014908,19.13393279,130.14,130.09,7.6894]
[1742477015104,11.38970103,130.13,130.08,6.051]
[1742477015306,46.55810103,130.12,130.08,6.051]
[1742477015505,46.55810103,130.12,130.08,13.7411]
[1742477015707,0.05402843,130.11,130.07,11.38970103]
[1742477015903,0.05402843,130.11,130.04,281.02]
[1742477016111,0.05402843,130.11,130.07,11.38970103]
[1742477016713,0.05402843,130.11,130.08,4.1498]
[1742477016914,0.05402843,130.11,130.1,7.6893]
[1742477017516,27.46,130.15,130.1,11.38970103]
[1742477017814,38.84970103,130.15,130.1,11.38970103]
[1742477018607,0.0556101,130.14,130.12,7.688]
[1742477018813,0.0556101,130.14,130.1,11.38970103]
[1742477019015,0.0556101,130.14,130.12,0.05549855]
[1742477020616,7.6875,130.13,130.12,0.05549855]